Cogmind - Beta 14 @@@ ROGUE MODE // 2025.05.02 @ 23:10:32 Player: Niltras Result: Destroyed by 7Y-IB1(R) with Subdweller Laser Performance ------------- Evolutions (0) 0 Regions Visited (3) 600 Robots Destroyed (15) 75 Value Destroyed (230) 230 Prototype IDs (0) 0 Alien Tech Used (0) 0 Bonus (39) 39 TOTAL SCORE: 944 Bonus ------- Follower Combat Kills 39 Cogmind --------- Core Integrity 0/250 Matter 282/300 Energy 100/100 System Corruption 0% Temperature Cool (6) Movement Flying (120) Ox1 Location -10/Subcaves Parts ------- > --- POWER (1) -------- Subdweller Power Source > --- PROPULSION (2) --- Flight Unit > --- UTILITY (2) ------ (None) > --- WEAPON (2) ------- (None) > --- INVENTORY (5) ---- Light Ion Engine Heavy Battle Rifle Grenade Launcher Mining Laser Peak State ------------ > --- POWER ------------ Light Nuclear Core > --- PROPULSION ------- Aluminum Leg Aluminum Leg > --- UTILITY ---------- Sensor Array Seismic Detector > --- WEAPON ----------- Medium Laser Heavy Battle Rifle > --- INVENTORY -------- Light Ion Engine Small Laser Mining Laser [Rating: 12] Favorites ----------- Power Light Ion Engine Engine Light Ion Engine Power Core Light Nuclear Core Propulsion Aluminum Leg Leg Aluminum Leg Flight Unit Flight Unit Utility Seismic Detector Device Seismic Detector Storage Medium Storage Unit Weapon Medium Laser Energy Gun Medium Laser Ballistic Gun Heavy Battle Rifle Launcher Grenade Launcher Build | -11 -10 -10 -10 ------- Run | Yrd Mat Min Sub Slots Evolved . | . . . . Power . | . . . . Propulsion . | . . . . Utility . | . . . . Weapon . | . . . . Parts Attached 23 | 6 4 9 4 Power 5 | 1 1 2 1 Engine 4 | 1 . 2 1 Core 1 | . 1 . . Reactor . | . . . . Propulsion 9 | 2 . 5 2 Treads . | . . . . Leg 2 | 2 . . . Wheel . | . . . . Hover . | . . . . Flight 7 | . . 5 2 Utility 3 | 1 2 . . Device 2 | 1 1 . . Storage 1 | . 1 . . Processor . | . . . . Hackware . | . . . . Protection . | . . . . Artifact . | . . . . Weapon 6 | 2 1 2 1 Energy Gun 2 | 2 . . . Energy Cannon . | . . . . Ballistic Gun 3 | . 1 2 . Ballistic Cannon . | . . . . Launcher 1 | . . . 1 Special Weapon . | . . . . Impact Weapon . | . . . . Slashing Weapon . | . . . . Piercing Weapon . | . . . . Special Melee Weapon . | . . . . Unidentified Prototypes . | . . . . Parts Lost 8 | . . 6 2 Power 2 | . . 2 . Propulsion 3 | . . 1 2 Utility 2 | . . 2 . Weapon 1 | . . 1 . Highest Loss Streak 4 | . . 4 2 To Critical Strikes 1 | . . 1 . Average Slot Usage (%) 70 | . 93 70 49 Engine 8 | . 13 6 14 Core 3 | . 1 5 . Leg 15 | . 28 16 . Flight 7 | . . 4 26 Device 9 | . 20 10 . Energy Gun 10 | . 16 12 . Ballistic Gun 12 | . 12 13 6 Peak Build Rating 12 | 6 9 12 8 Average Rating 7 | 4 6 8 5 On Entrance 5 | . 6 9 7 Naked Turns . | . . . . Heaviest Build 17 | 7 17 13 10 Greatest Support 20 | 20 20 20 8 Greatest Overweight (x) 2 | . . 2 1 Average Overweight (x) . | . . . . Largest Inventory Capacity 10 | 5 10 5 5 Average Capacity 5 | 5 6 5 5 Most Carried 5 | 2 3 5 5 Average Carried 3 | . 2 3 4 Final Capacity 5 | 5 5 5 5 Final Carried 5 | 2 3 5 4 Class Distribution -------------------- 100% | Mutant Dominant Class ---------------- Mutant | -10/Materials Mutant | -10/Mines Mutant | -10/Subcaves Resources | -11 -10 -10 -10 ----------- Run | Yrd Mat Min Sub Matter Collected 454 | 260 . 149 45 Remotely . | . . . . Salvage Created 314 | 122 41 89 62 Parts 30 | 12 2 11 5 Haulers Intercepted . | . . . . Recyclers Shooed 2 | 2 . . . Parts Field Recycled . | . . . . Retrieved Matter . | . . . . Parts Self-Destructed 11 | . . . 11 Prevented . | . . . . Kills | -11 -10 -10 -10 ------- Run | Yrd Mat Min Sub Combat Hostiles Destroyed 10 | . 1 6 3 Guns 7 | . 1 6 . AOE 3 | . . . 3 Classes Destroyed 5 | 2 1 1 1 Tunneler 4 | 4 . . . Recycler 1 | 1 . . . Swarmer 7 | . . 6 1 Grunt 2 | . 1 . 1 Sentry 1 | . . . 1 Best Kill Streak 5 | 5 1 3 3 Combat Bots Only 3 | . 1 3 3 Max Kills in Single Turn 2 | 1 1 1 2 Gunslinging . | . . . . Exploded 2 | . . . 2 Melee . | . . . . Uniques/NPCs Destroyed . | . . . . Combat | -11 -10 -10 -10 -------- Run | Yrd Mat Min Sub Hostile Shots Fired 74 | . 9 44 21 Missed 20 | . 3 9 8 Damage Taken 794 | . 98 504 192 Core 250 | . 48 122 80 Absorbed by Shields . | . . . . Core Remaining (%) 100 | 100 . . . Volleys Fired 42 | 12 7 19 4 Largest 2 | 2 2 2 1 Hottest 90 | 90 70 83 33 Shots Fired 69 | 24 14 27 4 Gun 66 | 24 14 27 1 Cannon . | . . . . Launcher 3 | . . . 3 Special . | . . . . Kinetic 22 | . 7 14 1 Thermal 44 | 24 7 13 . Explosive 3 | . . . 3 Electromagnetic . | . . . . Robot Hit Streak 8 | 8 4 4 . Robot Miss Streak 4 | 4 2 3 2 Penetration Max . | . . . . Secondary Targets . | . . . . Shots Hit Robots 37 | 14 9 14 . Core Hits 22 | 6 4 6 6 Critical Kills . | . . . . Critical Parts Destroyed . | . . . . Critical Strikes 2 | 2 . . . Burn 2 | 2 . . . Melee Attacks . | . . . . Impact . | . . . . Slashing . | . . . . Piercing . | . . . . Sneak Attacks . | . . . . Combat Hostiles . | . . . . Follow-up Attacks . | . . . . Damage Inflicted 666 | 177 96 233 160 Guns 506 | 177 96 233 . Cannons . | . . . . Explosions 160 | . . . 160 Melee . | . . . . Ramming . | . . . . Kinetic 182 | . 35 147 . Thermal 324 | 177 61 86 . Explosive 160 | . . . 160 Electromagnetic . | . . . . Impact . | . . . . Slashing . | . . . . Piercing . | . . . . Highest Corruption . | . . . . Average Corruption . | . . . . Corruption Purged . | . . . . Corruption Blocked . | . . . . Overload Shots . | . . . . Overflow Damage . | . . . . Projectiles . | . . . . Explosions . | . . . . Melee . | . . . . Knockbacks . | . . . . Impact . | . . . . Kinetic . | . . . . Secondary . | . . . . Self-Inflicted Damage . | . . . . Shots . | . . . . Rammed . | . . . . Targets Rammed . | . . . . Kicked . | . . . . Crushed . | . . . . Highest Temperature 168 | 120 164 168 . Average Temperature 70 | 65 84 68 . Received Heat Transfer 105 | . 54 . 51 Siege Activations . | . . . . Robots Corrupted . | . . . . Combat Hostiles . | . . . . Parts Fried . | . . . . Impact Corruptions . | . . . . Robots Melted . | . . . . Combat Hostiles . | . . . . Parts Melted 6 | 3 2 1 . Heat Transferred 1075 | 631 185 259 . Parts Sabotaged . | . . . . Parts Stolen . | . . . . Parts Stripped . | . . . . Power Chain Reactions . | . . . . Alert | -11 -10 -10 -10 ------- Run | Yrd Mat Min Sub Peak Influence 123 | 25 76 123 . Initial 29 | . 16 29 . Average 30 | 10 23 34 . Maximum Alert Level . | . . . . Low Security (%) 100 | 100 100 100 . Level 1 . | . . . . Level 2 . | . . . . Level 3 . | . . . . Level 4 . | . . . . Level 5 . | . . . . High Security . | . . . . Max Security . | . . . . Squads Dispatched . | . . . . Investigation . | . . . . Extermination . | . . . . Reinforcement . | . . . . Assault . | . . . . Garrison . | . . . . Intercept . | . . . . Searches Triggered . | . . . . Construction Impeded . | . . . . Haulers Reinforced . | . . . . Active Scanning Responses . | . . . . Cargo Convoy Interrupts . | . . . . Stealth | -11 -10 -10 -10 --------- Run | Yrd Mat Min Sub Distress Signals 1 | . 1 . . Communications Jammed . | . . . . Distress Signals . | . . . . Times Spotted 16 | . 3 8 5 Peak Tracking Total 4 | . 4 3 3 Tactical Retreats 2 | . 1 1 . Traps | -11 -10 -10 -10 ------- Run | Yrd Mat Min Sub Traps Triggered . | . . . . Indirectly . | . . . . Trap Hack Attempts . | . . . . Triggered . | . . . . Disarmed . | . . . . Reprogrammed . | . . . . Reused . | . . . . Traps Extracted . | . . . . Installed . | . . . . Triggered 1 | . . . 1 Machines | -11 -10 -10 -10 ---------- Run | Yrd Mat Min Sub Machines Disabled . | . . . . Max in Single Turn . | . . . . Machines Repaired . | . . . . Machines Dismantled . | . . . . Machines Sabotaged . | . . . . Overloaded Fab Kills . | . . . . Hacking | -11 -10 -10 -10 --------- Run | Yrd Mat Min Sub Machines Accessed . | . . . . Terminals . | . . . . Fabricators . | . . . . Repair Stations . | . . . . Recycling Units . | . . . . Scanalyzers . | . . . . Garrison Access . | . . . . Total Hacks . | . . . . Successful . | . . . . Failed . | . . . . Catastrophic . | . . . . Database Lockouts . | . . . . Manual . | . . . . Terminals . | . . . . Fabricators . | . . . . Repair Stations . | . . . . Recycling Units . | . . . . Scanalyzers . | . . . . Garrison Access . | . . . . Terminal Hacks . | . . . . Fabricator Hacks . | . . . . Repair Station Hacks . | . . . . Recycling Unit Hacks . | . . . . Scanalyzer . | . . . . Garrison Access Hacks . | . . . . Unauthorized Hacks . | . . . . Terminals . | . . . . Fabricators . | . . . . Repair Stations . | . . . . Recycling Units . | . . . . Scanalyzers . | . . . . Garrison Access . | . . . . Data Cores Recovered . | . . . . Used . | . . . . Hacking Detections . | . . . . Full Trace Events . | . . . . Feedback Events . | . . . . Feedback Blocked . | . . . . Robot Schematics Acquired . | . . . . Robots Built . | . . . . Authchips . | . . . . Time . | . . . . Total Robot Build Rating . | . . . . Part Schematics Acquired . | . . . . Parts Built . | . . . . Authchips . | . . . . Time . | . . . . Total Part Build Rating . | . . . . Parts Repaired . | . . . . Time . | . . . . Parts Recycled . | . . . . Recycled Matter . | . . . . Retrieved Matter . | . . . . Retrieved Components . | . . . . Parts Scanalyzed . | . . . . Part Schematics Acquired . | . . . . Parts Damaged . | . . . . Bothacking | -11 -10 -10 -10 ------------ Run | Yrd Mat Min Sub Used RIF Installer . | . . . . Robots Hacked . | . . . . Non-combat . | . . . . Combat . | . . . . Robot Hacks Applied . | . . . . Relay Couplers Released . | . . . . Fabnet Peak Effective % . | . . . . Robots Rewired . | . . . . Allies Hacked . | . . . . Hacks Repelled . | . . . . Allies | -11 -10 -10 -10 -------- Run | Yrd Mat Min Sub Total Allies 2 | . . 2 . Largest Group 2 | . . 2 . Highest-Rated Group 45 | . . 45 . Highest-Rated Ally 31 | . . 31 . Total Orders . | . . . . Ally Attacks 6 | . . 6 . Total Damage 104 | . . 104 . Kills 1 | . . 1 . Allies Corrupted . | . . . . Allies Melted . | . . . . Intel | -11 -10 -10 -10 ------- Run | Yrd Mat Min Sub Robot Analysis Total . | . . . . Derelict Logs Recovered 2 | . . 2 . Drone Launches . | . . . . Drone Recoveries . | . . . . Exploration | -11 -10 -10 -10 ------------- Run | Yrd Mat Min Sub Turns Passed 1136 | 118 131 719 168 Spaces Moved 1071 | 50 80 632 309 Core 4 | 4 . . . Treads . | . . . . Legs 524 | 46 80 398 . Wheels . | . . . . Hover . | . . . . Flight 543 | . . 234 309 Fastest Speed 37 | 50 120 37 37 Average Speed 86 | 114 120 102 40 Slowest Speed 200 | 120 120 200 120 Overloaded Moves . | . . . . Propulsion Burnouts . | . . . . Robots Hopped 1 | . . 1 . Cave-ins Triggered . | . . . . Exploration Rate (%) 35 | 3 23 99 18 Regions Visited 3 Branch Regions 2 Pre-discovered Areas . | . . . . Known Exits Taken . | . . . . Unknown Exits Taken 3 | 1 1 1 . Scrap Searched 1 | . . 1 . Spaces Dug . | . . . . Terrain Destroyed 10 | . . 3 7 Melee . | . . . . Projectile 3 | . . 3 . AOE 7 | . . . 7 Terrain Rammed . | . . . . Walls Destroyed . | . . . . Machines Disabled . | . . . . Actions | -11 -10 -10 -10 --------- Run | Yrd Mat Min Sub Total 1211 | 83 102 678 348 Wait 57 | 14 9 7 27 Move 1066 | 49 79 629 309 Hop 1 | . . 1 . Pick Up 8 | 2 . 6 . Fast Attach 13 | 6 4 3 . Attach 5 | . . 3 2 Detach 3 | . 1 . 2 Swap 5 | . . 3 2 Drop 11 | . 2 7 2 Fire 42 | 12 7 19 4 Melee . | . . . . Ram . | . . . . Kick . | . . . . Crush . | . . . . Escape Stasis . | . . . . Rewire . | . . . . Trap . | . . . . Miscellaneous . | . . . . Route ------- -11/Scrapyard -10/Materials -10/Mines (discovered 3 exits: [*Mat x2] / [*Sub]) -10/Subcaves History --------- Turn | Location | Event 4 | -11/Scrapyard | Discovered new exit (range 15) 119 | -11/Scrapyard | Entered Materials 244 | -10/Materials | Discovered new exit (range 6) 250 | -10/Materials | Entered Mines 301 | -10/Mines | Build established: Mutant 322 | -10/Mines | Assembled infested the area 350 | -10/Mines | A weapon hastily lodged in a ceiling crevice suddenly fell to the ground 490 | -10/Mines | Learned 2 Materials zone layouts 502 | -10/Mines | Learned Materials garrison access intel 537 | -10/Mines | Discovered new exit (range 6) 546 | -10/Mines | Lost 4 parts (1p1n2u) 853 | -10/Mines | Discovered new exit (range 5) 861 | -10/Mines | Core integrity fell below 50% 967 | -10/Mines | Discovered new exit (range 6) 969 | -10/Mines | Entered Subcaves 1034 | -10/Subcaves | Shifting Twisted Machinery released Sub. Power Source 1109 | -10/Subcaves | Core integrity fell below 20% 1137 | -10/Subcaves | Destroyed by 7Y-IB1(R) with Subdweller Laser Last Messages --------------- 00988_ S-10 Pest destroyed. 00988_ G-34 Mercenary destroyed. 00989_ The unstable cave ceiling collapses. 00991_ Y-45 Defender destroyed. 00997_ Acquired 9 matter. 00997_ Acquired 34 matter. 00998_ Lgt. Armor Plating fries itself beyond repair. 01000_ Subatomizers dissect the Beam Rifle. 01002_ Heat Sink fries itself beyond repair. Sub. Power Source falls loose from the Twisted Machinery. 01036_ Dropped Lgt. Ion Engine. 01037_ Subatomizers dissect the Lgt. Ion Engine. 01039_ Dropped Flight Unit. 01048_ Subatomizers dissect the Lgt. Ion Engine. 01057_ Acquired 2 matter. 01119_ Flight Unit destroyed. 01137_ Sub. Power Source shoots sparks and powers down. Map ----- +----------------------------------------------------+ | ?????????????????????????????????????????????????? | | ?????????????????????????????????????????????????? | | ?????????????????????????????????????????????????? | | ?????????????????????????????????????????????????? | | ?????????????????????????????????????????????????? | | ?????????????????????????????????????????????????? | | ?????????????????????????????????????????????????? | | ?????????????????????????????????????????????????? | | ?????????????????????????????????????????????????? | | ?????????????????????????????????????????????????? | | ??????????????????????????????????????????#####??# | | ?????????????????????????????????????????## #### | | ?????????????????????????????????????????# ## | | ?????????????????????????????????????????# | | ?????????????????????????????????????##### | | ????????????????????????????????????## # | | ????????????????????????????????????# ## # | | ??????????????????????????????#?????# ### | | ??????????????????????????????#"#####""" ## | | ???????????????????????????""""""""" #### | | ??????????????????????????" "" #??### | | ?????????????????????????????? ## #????#### | | ???????????????????#???????????##### ##???????? | | ???????????????????# ???####### # ###????????? | | ???????????????????# ## RR #??????????? | | ???????????????????# @ ## #???? | | ???????????????????# ## # #???? | | ???????????????????# ######## ## ##???? | | ???????????????????### ####??????# #######???????? | | ?????????????????????##??????????###?????????????? | | ?????????????????????????????????????????????????? | | ?????????????????????????????????????????????????? | | ?????????????????????????????????????????????????? | | ?????????????????????????????????????????????????? | | ?????????????????????????????????????????????????? | | ?????????????????????????????????????????????????? | | ?????????????????????????????????????????????????? | | ?????????????????????????????????????????????????? | | ?????????????????????????????????????????????????? | | ?????????????????????????????????????????????????? | | ?????????????????????????????????????????????????? | | ?????????????????????????????????????????????????? | | ?????????????????????????????????????????????????? | | ?????????????????????????????????????????????????? | | | | | | | | | | | | | +----------------------------------------------------+ Best States ------------- Heat Dissipation 25 Energy Generation 15 Energy Capacity 250 Matter Stores 300 Matter Capacity 300 Sight Range 16 Robot Scan Range 14 Terrain Scan Density 10 Evasion (%) 62 Item Schematics ----------------- None Robot Schematics ------------------ None Fabricated ------------ Nothing Alien Tech Used ----------------- None Achievements -------------- None Challenges ------------ None Game ------ Seed NullSigixBlaster Manual? 0 Play Time 00:16:45 Cumulative 96.3 hours Start 2025.05.02 @ 22:54:33 End 2025.05.02 @ 23:10:32 Sessions 1 Manual Loads 0 Difficulty Rogue Special Mode None Game No. 54 Rogue 2 Adventurer 16 Explorer 36 Win Type - Total 5 Types 3/0/1/1/0/0/0/0/0 Lore% 51 Gallery% 50 Achievement% 48 Wizard Run 0 Options --------- Layout 1 ASCII 0 Keyboard 0 Movement Numpad Keybinds 0 Fullscreen 1 Font 20/SmallcapsGlow Map View 50x35 Zoom Use 0% Tactical HUD 1 Map Filters NONE Filters NONE Steam 1 RUN: 752f428d-a9fb-4045-8dd3-7e49aff09392